[Event "Titled Tuesday Blitz May 2 Early 2023"]
[White "Klimkowski, Jan"]
[Black "Rom, Jasper"]
[WhiteFideId "21856222"]
[BlackFideId "2023733"]
[WhiteElo "2331"]
[BlackElo "2233"]
[Result "0-1"]
[Round "08"]
[TimeControl "180+2"]
[Date "2023.05.02"]
[WhiteClock "0:00:48"]
[BlackClock "0:00:01"]

1. e4 {[%clk 0:03:00]}  e6 {[%clk 0:02:59]} 2. e5 {[%clk 0:02:58]}  d5 {[%clk 0:02:57]} 3. exd6 {[%clk 0:02:58]}  cxd6 {[%clk 0:02:52]} 4. d4 {[%clk 0:02:59]}  Nf6 {[%clk 0:02:51]} 5. Nf3 {[%clk 0:02:58]}  Nc6 {[%clk 0:02:50]} 6. c3 {[%clk 0:02:58]}  Be7 {[%clk 0:02:50]} 7. Bd3 {[%clk 0:02:58]}  e5 {[%clk 0:02:41]} 8. Nbd2 {[%clk 0:02:53]}  Bg4 {[%clk 0:02:35]} 9. Qb3 {[%clk 0:02:48]}  Qc7 {[%clk 0:02:25]} 10. d5 {[%clk 0:02:37]}  Na5 {[%clk 0:02:16]} 11. Qa4+ {[%clk 0:02:37]}  Bd7 {[%clk 0:02:11]} 12. Bb5 {[%clk 0:02:37]}  b6 {[%clk 0:01:57]} 13. c4 {[%clk 0:02:29]}  Nb7 {[%clk 0:01:40]} 14. Bxd7+ {[%clk 0:02:28]}  Qxd7 {[%clk 0:01:39]} 15. Qc2 {[%clk 0:02:23]}  Rc8 {[%clk 0:01:37]} 16. Qd3 {[%clk 0:02:13]}  Nc5 {[%clk 0:01:35]} 17. Qe2 {[%clk 0:02:14]}  a5 {[%clk 0:01:30]} 18. O-O {[%clk 0:02:11]}  O-O {[%clk 0:01:30]} 19. b3 {[%clk 0:02:10]}  Qf5 {[%clk 0:01:08]} 20. Ba3 {[%clk 0:02:06]}  Qd3 {[%clk 0:01:07]} 21. Qxd3 {[%clk 0:02:05]}  Nxd3 {[%clk 0:01:07]} 22. Ng5 {[%clk 0:02:01]}  Nc5 {[%clk 0:00:57]} 23. f4 {[%clk 0:01:49]}  exf4 {[%clk 0:00:54]} 24. Nh3 {[%clk 0:01:49]}  Nh5 {[%clk 0:00:41]} 25. Bb2 {[%clk 0:01:38]}  Rfe8 {[%clk 0:00:25]} 26. Rae1 {[%clk 0:01:21]}  Nd3 {[%clk 0:00:24]} 27. Rb1 {[%clk 0:01:21]}  Nxb2 {[%clk 0:00:23]} 28. Rxb2 {[%clk 0:01:22]}  Bf6 {[%clk 0:00:23]} 29. Rc2 {[%clk 0:01:22]}  Bd4+ {[%clk 0:00:23]} 30. Kh1 {[%clk 0:01:23]}  Be3 {[%clk 0:00:23]} 31. Nf3 {[%clk 0:01:20]}  h6 {[%clk 0:00:22]} 32. Ne1 {[%clk 0:01:17]}  g5 {[%clk 0:00:22]} 33. Nd3 {[%clk 0:01:17]}  Re4 {[%clk 0:00:20]} 34. Ndf2 {[%clk 0:01:11]}  Rd4 {[%clk 0:00:18]} 35. Ng4 {[%clk 0:01:11]}  Kg7 {[%clk 0:00:14]} 36. Re2 {[%clk 0:01:10]}  Re8 {[%clk 0:00:14]} 37. g3 {[%clk 0:01:05]}  f5 {[%clk 0:00:13]} 38. Nxe3 {[%clk 0:01:05]}  Rxe3 {[%clk 0:00:13]} 39. Ref2 {[%clk 0:01:00]}  fxg3 {[%clk 0:00:12]} 40. Rxf5 {[%clk 0:01:00]}  gxh2 {[%clk 0:00:09]} 41. Kxh2 {[%clk 0:00:48]}  Rd2+ {[%clk 0:00:09]} 42. R5f2 {[%clk 0:00:44]}  Ree2 {[%clk 0:00:09]} 43. Rxe2 {[%clk 0:00:44]}  Rxe2+ {[%clk 0:00:10]} 44. Rf2 {[%clk 0:00:45]}  Rxf2+ {[%clk 0:00:09]} 45. Nxf2 {[%clk 0:00:46]}  Kf6 {[%clk 0:00:10]} 46. Ng4+ {[%clk 0:00:44]}  Kg6 {[%clk 0:00:09]} 47. a3 {[%clk 0:00:43]}  Nf6 {[%clk 0:00:09]} 48. Ne3 {[%clk 0:00:44]}  Ne4 {[%clk 0:00:10]} 49. b4 {[%clk 0:00:43]}  axb4 {[%clk 0:00:09]} 50. axb4 {[%clk 0:00:44]}  h5 {[%clk 0:00:08]} 51. Nc2 {[%clk 0:00:38]}  Kf6 {[%clk 0:00:08]} 52. Kg2 {[%clk 0:00:35]}  Ke5 {[%clk 0:00:08]} 53. Kf3 {[%clk 0:00:35]}  Nd2+ {[%clk 0:00:09]} 54. Ke2 {[%clk 0:00:35]}  Nxc4 {[%clk 0:00:09]} 55. Kd3 {[%clk 0:00:35]}  Kxd5 {[%clk 0:00:06]} 56. b5 {[%clk 0:00:36]}  Ne5+ {[%clk 0:00:06]} 57. Ke3 {[%clk 0:00:37]}  h4 {[%clk 0:00:05]} 58. Ne1 {[%clk 0:00:36]}  h3 {[%clk 0:00:05]} 59. Kf2 {[%clk 0:00:37]}  g4 {[%clk 0:00:04]} 60. Kg3 {[%clk 0:00:37]}  Kc4 {[%clk 0:00:03]} 61. Nc2 {[%clk 0:00:37]}  Kxb5 {[%clk 0:00:03]} 62. Nd4+ {[%clk 0:00:38]}  Kc5 {[%clk 0:00:02]} 63. Ne6+ {[%clk 0:00:39]}  Kc4 {[%clk 0:00:02]} 64. Ng5 {[%clk 0:00:38]}  b5 {[%clk 0:00:02]} 65. Ne4 {[%clk 0:00:39]}  Kd5 {[%clk 0:00:02]} 66. Nf6+ {[%clk 0:00:39]}  Kc6 {[%clk 0:00:02]} 67. Ne4 {[%clk 0:00:39]}  b4 {[%clk 0:00:03]} 68. Nd2 {[%clk 0:00:40]}  Kb5 {[%clk 0:00:02]} 69. Nb3 {[%clk 0:00:40]}  Ka4 {[%clk 0:00:03]} 70. Nd4 {[%clk 0:00:40]}  b3 {[%clk 0:00:03]} 71. Ne2 {[%clk 0:00:40]}  b2 {[%clk 0:00:03]} 72. Kh2 {[%clk 0:00:41]}  Kb3 {[%clk 0:00:03]} 73. Nd4+ {[%clk 0:00:41]}  Kc3 {[%clk 0:00:03]} 74. Nb5+ {[%clk 0:00:42]}  Kb4 {[%clk 0:00:03]} 75. Nxd6 {[%clk 0:00:42]}  b1=Q {[%clk 0:00:03]} 76. Ne4 {[%clk 0:00:43]}  Qxe4 {[%clk 0:00:02]} 77. Kg3 {[%clk 0:00:44]}  Qf3+ {[%clk 0:00:02]} 78. Kh4 {[%clk 0:00:45]}  Qf6+ {[%clk 0:00:02]} 79. Kg3 {[%clk 0:00:45]}  Qg5 {[%clk 0:00:01]} 80. Kh2 {[%clk 0:00:45]}  Qf4+ {[%clk 0:00:01]} 81. Kg1 {[%clk 0:00:46]}  Nf3+ {[%clk 0:00:01]} 82. Kf1 {[%clk 0:00:47]}  Qc1+ {[%clk 0:00:01]} 83. Ke2 {[%clk 0:00:48]}  Qd2+ {[%clk 0:00:01]} 84. Kf1 {[%clk 0:00:48]}  Qg2# {[%clk 0:00:01]} 0-1


[Site "https://www.chess.com"]

[Event "Titled Tuesday Blitz May 2 Early 2023"]
[White "Tanenbaum, Zachary"]
[Black "Fernandez Garcia, Gumersindo"]
[WhiteFideId "2060850"]
[BlackFideId "24516740"]
[WhiteElo "2175"]
[BlackElo "2093"]
[Result "1-0"]
[Round "08"]
[TimeControl "180+2"]
[Date "2023.05.02"]
[WhiteClock "0:01:22"]
[BlackClock "0:00:16"]

1. e4 {[%clk 0:03:00]}  c5 {[%clk 0:02:55]} 2. Nf3 {[%clk 0:03:00]}  g6 {[%clk 0:02:56]} 3. d4 {[%clk 0:03:01]}  cxd4 {[%clk 0:02:56]} 4. Qxd4 {[%clk 0:03:01]}  Nf6 {[%clk 0:02:56]} 5. e5 {[%clk 0:03:02]}  Nc6 {[%clk 0:02:56]} 6. Qa4 {[%clk 0:03:02]}  Nd5 {[%clk 0:02:57]} 7. Qb3 {[%clk 0:03:03]}  Nb6 {[%clk 0:02:55]} 8. Bf4 {[%clk 0:03:03]}  Bg7 {[%clk 0:02:53]} 9. Nc3 {[%clk 0:03:03]}  O-O {[%clk 0:02:53]} 10. O-O-O {[%clk 0:03:03]}  Qc7 {[%clk 0:02:31]} 11. Nb5 {[%clk 0:02:49]}  Qb8 {[%clk 0:02:30]} 12. Qe3 {[%clk 0:02:48]}  e6 {[%clk 0:02:18]} 13. h4 {[%clk 0:02:42]}  Nd5 {[%clk 0:02:17]} 14. Rxd5 {[%clk 0:02:39]}  exd5 {[%clk 0:02:17]} 15. e6 {[%clk 0:02:39]}  d4 {[%clk 0:01:35]} 16. Qd2 {[%clk 0:02:23]}  Qxf4 {[%clk 0:01:22]} 17. Qxf4 {[%clk 0:02:22]}  fxe6 {[%clk 0:01:22]} 18. Qd6 {[%clk 0:02:15]}  Bh6+ {[%clk 0:01:10]} 19. Kb1 {[%clk 0:02:14]}  Bf4 {[%clk 0:01:11]} 20. Qc5 {[%clk 0:02:05]}  b6 {[%clk 0:01:08]} 21. Qa3 {[%clk 0:01:59]}  d5 {[%clk 0:00:44]} 22. Nbxd4 {[%clk 0:01:56]}  Nxd4 {[%clk 0:00:36]} 23. Nxd4 {[%clk 0:01:56]}  e5 {[%clk 0:00:33]} 24. Qb3 {[%clk 0:01:42]}  Bb7 {[%clk 0:00:28]} 25. Ne6 {[%clk 0:01:41]}  Rf6 {[%clk 0:00:27]} 26. Nxf4 {[%clk 0:01:40]}  Rxf4 {[%clk 0:00:28]} 27. Ba6 {[%clk 0:01:34]}  Bc6 {[%clk 0:00:26]} 28. Bb5 {[%clk 0:01:30]}  Bb7 {[%clk 0:00:27]} 29. Bd7 {[%clk 0:01:29]}  Rxf2 {[%clk 0:00:20]} 30. Be6+ {[%clk 0:01:29]}  Kg7 {[%clk 0:00:19]} 31. Bxd5 {[%clk 0:01:29]}  Raf8 {[%clk 0:00:17]} 32. a3 {[%clk 0:01:26]}  Bc8 {[%clk 0:00:17]} 33. Re1 {[%clk 0:01:24]}  Bf5 {[%clk 0:00:16]} 34. Be4 {[%clk 0:01:23]}  Rxg2 {[%clk 0:00:16]} 35. Bxg2 {[%clk 0:01:22]} 1-0


[Site "https://www.chess.com"]

[Event "Titled Tuesday Blitz May 2 Early 2023"]
[White "Piesik, Piotr"]
[Black "Galchenko, Matvey"]
[WhiteFideId "1136194"]
[BlackFideId "24175480"]
[WhiteElo "2299"]
[BlackElo "2423"]
[Result "0-1"]
[Round "08"]
[TimeControl "180+2"]
[Date "2023.05.02"]
[WhiteClock "0:00:13"]
[BlackClock "0:00:11"]

1. Nf3 {[%clk 0:03:00]}  c5 {[%clk 0:02:55]} 2. e4 {[%clk 0:03:00]}  g6 {[%clk 0:02:54]} 3. c3 {[%clk 0:03:00]}  Bg7 {[%clk 0:02:53]} 4. d4 {[%clk 0:02:59]}  cxd4 {[%clk 0:02:54]} 5. cxd4 {[%clk 0:03:00]}  d5 {[%clk 0:02:54]} 6. e5 {[%clk 0:03:00]}  a6 {[%clk 0:02:50]} 7. h3 {[%clk 0:02:57]}  Nc6 {[%clk 0:02:50]} 8. Nc3 {[%clk 0:02:57]}  f6 {[%clk 0:02:50]} 9. exf6 {[%clk 0:02:55]}  Nxf6 {[%clk 0:02:51]} 10. Bd3 {[%clk 0:02:53]}  O-O {[%clk 0:02:50]} 11. O-O {[%clk 0:02:53]}  Nh5 {[%clk 0:02:51]} 12. Be3 {[%clk 0:02:38]}  Nf4 {[%clk 0:02:50]} 13. Bc2 {[%clk 0:02:38]}  Kh8 {[%clk 0:02:27]} 14. Re1 {[%clk 0:02:35]}  Qd7 {[%clk 0:02:17]} 15. Bxf4 {[%clk 0:02:28]}  Rxf4 {[%clk 0:02:18]} 16. Ne5 {[%clk 0:02:28]}  Qd6 {[%clk 0:02:13]} 17. Qd2 {[%clk 0:02:19]}  Rf8 {[%clk 0:01:57]} 18. f4 {[%clk 0:02:11]}  Bf5 {[%clk 0:01:45]} 19. Bxf5 {[%clk 0:02:10]}  Rxf5 {[%clk 0:01:46]} 20. Ne2 {[%clk 0:01:54]}  Raf8 {[%clk 0:01:43]} 21. Rac1 {[%clk 0:01:49]}  Bh6 {[%clk 0:01:32]} 22. Nxc6 {[%clk 0:01:38]}  bxc6 {[%clk 0:01:32]} 23. Rf1 {[%clk 0:01:28]}  R5f6 {[%clk 0:01:25]} 24. Qd3 {[%clk 0:01:08]}  a5 {[%clk 0:00:58]} 25. Rc5 {[%clk 0:00:55]}  a4 {[%clk 0:00:54]} 26. g3 {[%clk 0:00:54]}  Qe6 {[%clk 0:00:48]} 27. Kg2 {[%clk 0:00:51]}  g5 {[%clk 0:00:46]} 28. Rf3 {[%clk 0:00:40]}  gxf4 {[%clk 0:00:46]} 29. g4 {[%clk 0:00:40]}  Rb8 {[%clk 0:00:38]} 30. Rc2 {[%clk 0:00:31]}  Rb4 {[%clk 0:00:27]} 31. Nc3 {[%clk 0:00:27]}  Qd6 {[%clk 0:00:23]} 32. Re2 {[%clk 0:00:25]}  Bg7 {[%clk 0:00:23]} 33. a3 {[%clk 0:00:20]}  Rc4 {[%clk 0:00:22]} 34. Re1 {[%clk 0:00:17]}  Rf8 {[%clk 0:00:21]} 35. Ne2 {[%clk 0:00:17]}  e5 {[%clk 0:00:21]} 36. dxe5 {[%clk 0:00:16]}  Qxe5 {[%clk 0:00:22]} 37. Ref1 {[%clk 0:00:15]}  Qxb2 {[%clk 0:00:20]} 38. Kh1 {[%clk 0:00:15]}  Qe5 {[%clk 0:00:17]} 39. Qd2 {[%clk 0:00:12]}  Qe4 {[%clk 0:00:11]} 40. Ng1 {[%clk 0:00:12]}  Rc2 {[%clk 0:00:10]} 41. Qd3 {[%clk 0:00:12]}  Qxd3 {[%clk 0:00:09]} 42. Rxd3 {[%clk 0:00:13]}  Rc3 {[%clk 0:00:10]} 43. Rxc3 {[%clk 0:00:13]}  Bxc3 {[%clk 0:00:11]} 44. Ne2 {[%clk 0:00:13]}  Bb2 {[%clk 0:00:10]} 45. Nxf4 {[%clk 0:00:14]}  Kg8 {[%clk 0:00:10]} 46. Kg2 {[%clk 0:00:13]}  Bxa3 {[%clk 0:00:11]} 47. Kf3 {[%clk 0:00:13]}  Bd6 {[%clk 0:00:11]} 0-1


[Site "https://www.chess.com"]

[Event "Titled Tuesday Blitz May 2 Early 2023"]
[White "Mikhailovsky, Vladimir"]
[Black "Tasev, Dejan"]
[WhiteFideId "34105414"]
[BlackFideId "936618"]
[WhiteElo "2275"]
[BlackElo "2244"]
[Result "0-1"]
[Round "08"]
[TimeControl "180+2"]
[Date "2023.05.02"]
[WhiteClock "0:00:01"]
[BlackClock "0:00:16"]

1. e4 {[%clk 0:03:00]}  e6 {[%clk 0:02:59]} 2. Qe2 {[%clk 0:02:56]}  d5 {[%clk 0:03:00]} 3. exd5 {[%clk 0:02:56]}  Qxd5 {[%clk 0:03:00]} 4. Nc3 {[%clk 0:02:56]}  Qd8 {[%clk 0:03:00]} 5. Nf3 {[%clk 0:02:57]}  Nf6 {[%clk 0:03:00]} 6. g3 {[%clk 0:02:57]}  Be7 {[%clk 0:02:58]} 7. Bg2 {[%clk 0:02:58]}  O-O {[%clk 0:02:58]} 8. O-O {[%clk 0:02:59]}  Nc6 {[%clk 0:02:57]} 9. Rd1 {[%clk 0:02:59]}  Nd5 {[%clk 0:02:56]} 10. d4 {[%clk 0:02:58]}  Bf6 {[%clk 0:02:51]} 11. Ne4 {[%clk 0:02:52]}  Be7 {[%clk 0:02:50]} 12. c4 {[%clk 0:02:50]}  Nf6 {[%clk 0:02:50]} 13. Bf4 {[%clk 0:02:47]}  Nxe4 {[%clk 0:02:46]} 14. Qxe4 {[%clk 0:02:48]}  Bf6 {[%clk 0:02:47]} 15. h4 {[%clk 0:02:46]}  h6 {[%clk 0:02:39]} 16. Ne5 {[%clk 0:02:40]}  Bxe5 {[%clk 0:02:08]} 17. dxe5 {[%clk 0:02:38]}  Qe7 {[%clk 0:02:08]} 18. a3 {[%clk 0:02:15]}  a5 {[%clk 0:02:06]} 19. Rd2 {[%clk 0:01:44]}  Rd8 {[%clk 0:02:03]} 20. Qe3 {[%clk 0:01:33]}  Rxd2 {[%clk 0:02:02]} 21. Qxd2 {[%clk 0:01:34]}  Bd7 {[%clk 0:01:59]} 22. Rd1 {[%clk 0:01:32]}  Be8 {[%clk 0:01:59]} 23. Qc3 {[%clk 0:01:06]}  Rd8 {[%clk 0:01:49]} 24. Rxd8 {[%clk 0:01:00]}  Qxd8 {[%clk 0:01:48]} 25. Bf3 {[%clk 0:00:49]}  Nd4 {[%clk 0:01:41]} 26. Bd1 {[%clk 0:00:42]}  c5 {[%clk 0:01:37]} 27. f3 {[%clk 0:00:33]}  Bc6 {[%clk 0:01:33]} 28. Kf1 {[%clk 0:00:34]}  b6 {[%clk 0:01:24]} 29. Kf2 {[%clk 0:00:30]}  a4 {[%clk 0:01:16]} 30. Be2 {[%clk 0:00:16]}  Qd7 {[%clk 0:01:12]} 31. Qd2 {[%clk 0:00:15]}  Qb7 {[%clk 0:01:06]} 32. Qd3 {[%clk 0:00:06]}  b5 {[%clk 0:01:04]} 33. Qe3 {[%clk 0:00:02]}  b4 {[%clk 0:01:02]} 34. Bf1 {[%clk 0:00:01]}  bxa3 {[%clk 0:01:01]} 35. bxa3 {[%clk 0:00:01]}  Bxf3 {[%clk 0:00:57]} 36. Qd3 {[%clk 0:00:01]}  Be4 {[%clk 0:00:54]} 37. Qd2 {[%clk 0:00:01]}  Bc6 {[%clk 0:00:51]} 38. Be3 {[%clk 0:00:01]}  Nf5 {[%clk 0:00:51]} 39. Bf4 {[%clk 0:00:01]}  Nd4 {[%clk 0:00:46]} 40. Be3 {[%clk 0:00:02]}  Qb6 {[%clk 0:00:45]} 41. g4 {[%clk 0:00:01]}  Be4 {[%clk 0:00:42]} 42. Qc3 {[%clk 0:00:01]}  Nc6 {[%clk 0:00:38]} 43. Qd2 {[%clk 0:00:02]}  Nxe5 {[%clk 0:00:35]} 44. Be2 {[%clk 0:00:01]}  Bc6 {[%clk 0:00:30]} 45. Qd1 {[%clk 0:00:02]}  Ng6 {[%clk 0:00:28]} 46. h5 {[%clk 0:00:02]}  Nf8 {[%clk 0:00:28]} 47. Qd6 {[%clk 0:00:02]}  Qb7 {[%clk 0:00:26]} 48. Bxc5 {[%clk 0:00:03]}  Nh7 {[%clk 0:00:26]} 49. Bd4 {[%clk 0:00:03]}  Be8 {[%clk 0:00:21]} 50. Qd8 {[%clk 0:00:03]}  Qd7 {[%clk 0:00:20]} 51. Qb6 {[%clk 0:00:03]}  Ng5 {[%clk 0:00:19]} 52. Be3 {[%clk 0:00:03]}  Ne4+ {[%clk 0:00:18]} 53. Ke1 {[%clk 0:00:03]}  Nf6 {[%clk 0:00:18]} 54. c5 {[%clk 0:00:03]}  Nd5 {[%clk 0:00:16]} 55. Bf2 {[%clk 0:00:02]}  Nxb6 {[%clk 0:00:16]} 56. cxb6 {[%clk 0:00:01]}  Qc8 {[%clk 0:00:16]} 57. Bf3 {[%clk 0:00:01]}  Bc6 {[%clk 0:00:16]} 58. Be2 {[%clk 0:00:01]}  Bb7 {[%clk 0:00:16]} 59. Bb5 {[%clk 0:00:01]}  Qc3+ {[%clk 0:00:16]} 0-1


[Site "https://www.chess.com"]

[Event "Titled Tuesday Blitz May 2 Early 2023"]
[White "Hayrapetyan, Hovik"]
[Black "Jeet, Jain"]
[WhiteFideId "13302639"]
[BlackFideId "5073022"]
[WhiteElo "2348"]
[BlackElo "2067"]
[Result "1-0"]
[Round "08"]
[TimeControl "180+2"]
[Date "2023.05.02"]
[WhiteClock "0:00:03"]
[BlackClock "0:00:09"]

1. e4 {[%clk 0:01:06]}  c6 {[%clk 0:02:57]} 2. d4 {[%clk 0:01:00]}  d5 {[%clk 0:02:57]} 3. e5 {[%clk 0:00:58]}  c5 {[%clk 0:02:54]} 4. Nf3 {[%clk 0:00:58]}  Nc6 {[%clk 0:02:54]} 5. dxc5 {[%clk 0:00:48]}  Bg4 {[%clk 0:02:53]} 6. Bb5 {[%clk 0:00:47]}  e6 {[%clk 0:02:53]} 7. b4 {[%clk 0:00:47]}  Ne7 {[%clk 0:02:48]} 8. c3 {[%clk 0:00:47]}  Ng6 {[%clk 0:02:48]} 9. Qa4 {[%clk 0:00:46]}  Rc8 {[%clk 0:02:22]} 10. Nd4 {[%clk 0:00:34]}  Nxe5 {[%clk 0:02:16]} 11. Bf4 {[%clk 0:00:34]}  a6 {[%clk 0:02:08]} 12. Bxe5 {[%clk 0:00:18]}  axb5 {[%clk 0:02:05]} 13. Qxb5 {[%clk 0:00:19]}  Qd7 {[%clk 0:02:06]} 14. Bg3 {[%clk 0:00:17]}  Be7 {[%clk 0:02:00]} 15. Nd2 {[%clk 0:00:17]}  O-O {[%clk 0:02:00]} 16. O-O {[%clk 0:00:16]}  Rfd8 {[%clk 0:01:52]} 17. N2b3 {[%clk 0:00:15]}  Nxd4 {[%clk 0:01:49]} 18. Nxd4 {[%clk 0:00:16]}  Qxb5 {[%clk 0:01:49]} 19. Nxb5 {[%clk 0:00:17]}  Be2 {[%clk 0:01:50]} 20. Nd6 {[%clk 0:00:06]}  Bxd6 {[%clk 0:01:49]} 21. Bxd6 {[%clk 0:00:07]}  Bxf1 {[%clk 0:01:44]} 22. Kxf1 {[%clk 0:00:08]}  Ra8 {[%clk 0:01:41]} 23. a4 {[%clk 0:00:08]}  f6 {[%clk 0:01:38]} 24. a5 {[%clk 0:00:08]}  Kf7 {[%clk 0:01:34]} 25. f4 {[%clk 0:00:08]}  Ke8 {[%clk 0:01:34]} 26. b5 {[%clk 0:00:05]}  Kd7 {[%clk 0:01:34]} 27. a6 {[%clk 0:00:04]}  bxa6 {[%clk 0:01:34]} 28. bxa6 {[%clk 0:00:02]}  Ra7 {[%clk 0:01:32]} 29. Rb1 {[%clk 0:00:02]}  Rxa6 {[%clk 0:01:26]} 30. Rb7+ {[%clk 0:00:02]}  Kc6 {[%clk 0:01:27]} 31. Rc7+ {[%clk 0:00:02]}  Kb5 {[%clk 0:01:27]} 32. Rxg7 {[%clk 0:00:03]}  Kc4 {[%clk 0:01:24]} 33. Rxh7 {[%clk 0:00:04]}  Ra2 {[%clk 0:01:24]} 34. Kg1 {[%clk 0:00:01]}  Rda8 {[%clk 0:01:19]} 35. h3 {[%clk 0:00:01]}  Re2 {[%clk 0:01:18]} 36. Kh2 {[%clk 0:00:01]}  Kxc3 {[%clk 0:01:16]} 37. Rg7 {[%clk 0:00:02]}  d4 {[%clk 0:01:16]} 38. Rg3+ {[%clk 0:00:02]}  d3 {[%clk 0:01:17]} 39. c6 {[%clk 0:00:02]}  Kc2 {[%clk 0:01:16]} 40. Bb4 {[%clk 0:00:03]}  Rc8 {[%clk 0:01:14]} 41. Rg6 {[%clk 0:00:01]}  f5 {[%clk 0:01:12]} 42. Rg7 {[%clk 0:00:01]}  Rxc6 {[%clk 0:01:11]} 43. h4 {[%clk 0:00:02]}  d2 {[%clk 0:01:10]} 44. Bxd2 {[%clk 0:00:02]}  Rxd2 {[%clk 0:01:10]} 45. h5 {[%clk 0:00:03]}  Rc8 {[%clk 0:01:10]} 46. h6 {[%clk 0:00:03]}  Rh8 {[%clk 0:01:11]} 47. h7 {[%clk 0:00:04]}  Rd3 {[%clk 0:01:06]} 48. g3 {[%clk 0:00:04]}  Rd1 {[%clk 0:01:01]} 49. Re7 {[%clk 0:00:03]}  Re1 {[%clk 0:00:59]} 50. Kh3 {[%clk 0:00:02]}  Rh1+ {[%clk 0:00:59]} 51. Kg2 {[%clk 0:00:02]}  R1xh7 {[%clk 0:01:00]} 52. Rxe6 {[%clk 0:00:03]}  Rf8 {[%clk 0:01:00]} 53. Rc6+ {[%clk 0:00:03]}  Kd3 {[%clk 0:00:56]} 54. Rd6+ {[%clk 0:00:03]}  Ke4 {[%clk 0:00:53]} 55. Re6+ {[%clk 0:00:04]}  Kd5 {[%clk 0:00:51]} 56. Re5+ {[%clk 0:00:04]}  Kd6 {[%clk 0:00:50]} 57. Ra5 {[%clk 0:00:04]}  Rg7 {[%clk 0:00:48]} 58. Ra6+ {[%clk 0:00:05]}  Ke7 {[%clk 0:00:48]} 59. Ra7+ {[%clk 0:00:05]}  Kf6 {[%clk 0:00:48]} 60. Ra6+ {[%clk 0:00:06]}  Kf7 {[%clk 0:00:47]} 61. Ra5 {[%clk 0:00:06]}  Kg6 {[%clk 0:00:45]} 62. Ra6+ {[%clk 0:00:06]}  Rf6 {[%clk 0:00:44]} 63. Ra8 {[%clk 0:00:04]}  Rd7 {[%clk 0:00:40]} 64. Rg8+ {[%clk 0:00:04]}  Kf7 {[%clk 0:00:39]} 65. Rg5 {[%clk 0:00:04]}  Rd2+ {[%clk 0:00:30]} 66. Kf3 {[%clk 0:00:04]}  Ra2 {[%clk 0:00:27]} 67. Rh5 {[%clk 0:00:03]}  Ke6 {[%clk 0:00:26]} 68. Rh8 {[%clk 0:00:02]}  Rf7 {[%clk 0:00:25]} 69. Re8+ {[%clk 0:00:02]}  Kf6 {[%clk 0:00:23]} 70. Rh8 {[%clk 0:00:02]}  Rb7 {[%clk 0:00:21]} 71. Rh6+ {[%clk 0:00:02]}  Kg7 {[%clk 0:00:19]} 72. Re6 {[%clk 0:00:02]}  Rb3+ {[%clk 0:00:19]} 73. Re3 {[%clk 0:00:03]}  Rxe3+ {[%clk 0:00:09]} 74. Kxe3 {[%clk 0:00:03]} 1-0


[Site "https://www.chess.com"]

[Event "Titled Tuesday Blitz May 2 Early 2023"]
[White "Albornoz Cabrera, Carlos Daniel"]
[Black "Reprintsev, Alexander"]
[WhiteFideId "3518736"]
[BlackFideId "14100541"]
[WhiteElo "2516"]
[BlackElo "2211"]
[Result "0-1"]
[Round "08"]
[TimeControl "180+2"]
[Date "2023.05.02"]
[WhiteClock "0:01:26"]
[BlackClock "0:00:55"]

1. e4 {[%clk 0:02:57]}  d5 {[%clk 0:02:59]} 2. Nc3 {[%clk 0:02:55]}  d4 {[%clk 0:02:59]} 3. Nce2 {[%clk 0:02:55]}  c5 {[%clk 0:02:59]} 4. Ng3 {[%clk 0:02:50]}  Qa5 {[%clk 0:02:58]} 5. a3 {[%clk 0:02:48]}  Nc6 {[%clk 0:02:57]} 6. Bc4 {[%clk 0:02:48]}  h5 {[%clk 0:02:34]} 7. Nxh5 {[%clk 0:02:41]}  Ne5 {[%clk 0:02:34]} 8. Be2 {[%clk 0:02:40]}  c4 {[%clk 0:02:29]} 9. Nf4 {[%clk 0:02:32]}  g5 {[%clk 0:02:21]} 10. Nd5 {[%clk 0:02:20]}  e6 {[%clk 0:02:20]} 11. b4 {[%clk 0:02:07]}  Qd8 {[%clk 0:02:15]} 12. Bb2 {[%clk 0:02:06]}  exd5 {[%clk 0:02:14]} 13. Bxd4 {[%clk 0:02:06]}  Bg7 {[%clk 0:02:10]} 14. c3 {[%clk 0:01:57]}  Nd3+ {[%clk 0:02:01]} 15. Bxd3 {[%clk 0:01:57]}  Bxd4 {[%clk 0:02:02]} 16. cxd4 {[%clk 0:01:50]}  cxd3 {[%clk 0:02:01]} 17. e5 {[%clk 0:01:47]}  g4 {[%clk 0:01:57]} 18. Qb3 {[%clk 0:01:43]}  Bf5 {[%clk 0:01:56]} 19. f3 {[%clk 0:01:40]}  Qb6 {[%clk 0:01:34]} 20. Qxd5 {[%clk 0:01:37]}  Rd8 {[%clk 0:01:32]} 21. Qc5 {[%clk 0:01:37]}  Rxd4 {[%clk 0:01:22]} 22. fxg4 {[%clk 0:01:30]}  Qxc5 {[%clk 0:01:20]} 23. bxc5 {[%clk 0:01:30]}  Re4+ {[%clk 0:01:16]} 24. Kf2 {[%clk 0:01:29]}  Bxg4 {[%clk 0:01:15]} 25. Rb1 {[%clk 0:01:30]}  Bc8 {[%clk 0:00:58]} 26. Nf3 {[%clk 0:01:30]}  Re2+ {[%clk 0:00:58]} 27. Kg3 {[%clk 0:01:30]}  Ne7 {[%clk 0:00:57]} 28. Rb3 {[%clk 0:01:26]}  Rg8+ {[%clk 0:00:56]} 29. Kf4 {[%clk 0:01:26]}  Nd5# {[%clk 0:00:55]} 0-1


[Site "https://www.chess.com"]